fUSD/lending_fUSD_20241016
["ID","MTS","AMOUNT","RATE_DAILY","PERIOD"]
[340343741,1729079440553,-200.0,0.00013435,2]
[340343742,1729079440562,-160.13,0.00013474,2]
[340343743,1729079440571,-1000.0,0.000135,2]
[340343744,1729079440582,-247.9240577,0.00013539,2]
[340343745,1729079440591,-1063.61,0.0001355,2]
[340343746,1729079440600,-500.0,0.00013698,2]
[340343747,1729079440610,-2347.55,0.00013699,2]
[340343748,1729079440618,-500.0,0.00013699,2]
[340343749,1729079440627,-800.0,0.00013699,2]
[340343750,1729079440636,-800.0,0.00013699,2]
[340343751,1729079440645,-800.0,0.00013699,2]
[340343752,1729079440654,-800.0,0.00013699,2]
[340343753,1729079440664,-200.0,0.00013699,2]
[340343754,1729079440674,-800.0,0.00013699,2]
[340343755,1729079440684,-1705.31,0.000137,2]
[340343756,1729079440694,-1933.43,0.000137,2]
[340343757,1729079440704,-1933.43,0.000137,2]
[340343758,1729079440714,-1933.43,0.000137,2]
[340343759,1729079440723,-1933.43,0.000137,2]
[340343760,1729079440733,-1933.43,0.000137,2]
[340343761,1729079440744,-559.42719602,0.0001377,2]
[340343762,1729079440753,-204536.57346912,0.000138,2]
[340343763,1729079440768,-27502.83514388,0.000138,2]
[340343764,1729079440777,-167.0,0.00013814,2]
[340343765,1729079440786,-600.33,0.00013854,2]
[340343766,1729079440796,-151.0,0.000139,2]
[340343767,1729079440806,-151.0,0.000139,2]
[340343768,1729079440816,-151.0,0.000139,2]
[340343769,1729079440826,-151.0,0.000139,2]
[340343770,1729079440836,-151.0,0.000139,2]
[340343771,1729079440845,-360.183364,0.000139,2]
[340343772,1729079440855,-360.183364,0.000139,2]
[340343773,1729079440865,-214.882878,0.000139,2]
[340343774,1729079440874,-151.0,0.000139,2]
[340343775,1729079440884,-165.596253,0.000139,2]
[340343776,1729079440894,-165.596253,0.000139,2]
[340343777,1729079440904,-151.0,0.000139,2]
[340343778,1729079440913,-151.0,0.000139,2]
[340343779,1729079440923,-151.0,0.000139,2]
[340343780,1729079440932,-151.0,0.000139,2]
[340343781,1729079440941,-152.555793,0.000139,2]
[340343782,1729079440951,-173.856665,0.000139,2]
[340343783,1729079440961,-173.856665,0.000139,2]
[340343784,1729079440970,-151.0,0.000139,2]
[340343785,1729079440979,-249.460463,0.000139,2]
[340343786,1729079440989,-151.0,0.000139,2]
[340343787,1729079440998,-245.501994,0.000139,2]
[340343788,1729079441007,-151.0,0.000139,2]
[340343789,1729079441018,-245.501994,0.000139,2]
[340343790,1729079441027,-741.77017,0.000139,2]
[340343791,1729079441036,-741.77017,0.000139,2]
[340343792,1729079441047,-151.0,0.000139,2]
[340343793,1729079441057,-518.646853,0.000139,2]
[340343794,1729079441067,-518.646853,0.000139,2]
[340343795,1729079441078,-151.0,0.000139,2]
[340343796,1729079441087,-151.0,0.000139,2]
[340343797,1729079441219,-32663.5641191,0.000139,2]
[340343798,1729079441234,-192681.0887509,0.000139,2]
[340343799,1729079441244,-268.32786791,0.00014,2]
[340343800,1729079441256,-650.0,0.00014,2]
[340343801,1729079441267,-402.42,0.00014098,2]
[340343802,1729079441277,-160.13,0.00014223,2]
[340343803,1729079441286,-500.0,0.00014246,3]
[340343804,1729079441297,-478.06,0.0001427,2]
[340343805,1729079441306,-151.0,0.00014283,2]
[340343806,1729079441316,-151.0,0.00014283,2]
[340343807,1729079441326,-600.33,0.00014283,2]
[340343808,1729079441336,-360.0,0.000143,2]
[340343809,1729079441345,-1000.0,0.000143,2]
[340343810,1729079441354,-681.0,0.000143,2]
[340343811,1729079441363,-247.0,0.00014354,2]
[340343812,1729079441373,-840.0,0.00014367,2]
[340343813,1729079441383,-823.0,0.00014414,2]
[340343814,1729079441392,-167.0,0.00014499,2]
[340343815,1729079441404,-167.0,0.00014499,2]
[340343816,1729079441418,-2430.0,0.000145,2]
[340343817,1729079441430,-150.0,0.00014635,2]
[340343818,1729079441440,-150.0,0.00014636,2]
[340343819,1729079441451,-150.0,0.00014638,2]
[340343820,1729079441461,-150.0,0.00014642,2]
[340343821,1729079441473,-150.0,0.00014643,2]
[340343822,1729079441482,-150.0,0.00014645,2]
[340343823,1729079441493,-150.0,0.00014646,2]
[340343824,1729079441504,-150.0,0.00014649,2]
[340343825,1729079441513,-150.0,0.00014654,2]
[340343826,1729079441522,-150.0,0.00014656,2]
[340343827,1729079441532,-150.0,0.00014658,2]
[340343828,1729079441541,-150.0,0.00014659,2]
[340343829,1729079441551,-150.0,0.00014659,2]
[340343830,1729079441560,-150.0,0.00014661,2]
[340343831,1729079441570,-150.0,0.00014661,2]
[340343832,1729079441579,-150.0,0.00014664,2]
[340343833,1729079441589,-150.0,0.00014671,2]
[340343834,1729079441598,-150.0,0.00014678,2]
[340343835,1729079441608,-150.0,0.00014683,2]
[340343836,1729079441617,-715.38776101,0.00014686,2]
[340343837,1729079441628,-150.0,0.00014694,2]
[340343838,1729079441638,-150.0,0.00014701,2]
[340343839,1729079441647,-150.0,0.00014703,2]
[340343840,1729079441656,-150.0,0.00014703,2]
[340343841,1729079441665,-150.0,0.00014706,2]
[340343842,1729079441676,-150.0,0.00014709,2]
[340343843,1729079441685,-150.0,0.0001471,2]
[340343844,1729079441694,-150.0,0.0001471,2]
[340343845,1729079441704,-600.33,0.00014712,2]
[340343846,1729079441713,-151.0,0.00014713,2]
[340343847,1729079441723,-150.0,0.00014715,2]
[340343848,1729079441732,-150.0,0.00014717,2]
[340343849,1729079441742,-150.0,0.00014717,2]
[340343850,1729079441751,-150.0,0.00014718,2]
[340343851,1729079441760,-150.0,0.00014718,2]
[340343852,1729079441770,-150.0,0.0001472,2]
[340343853,1729079441778,-1500.0,0.00014724,2]
[340343854,1729079441787,-150.0,0.00014728,2]
[340343855,1729079441797,-150.0,0.00014728,2]
[340343856,1729079441806,-150.0,0.00014729,2]
[340343857,1729079441816,-150.0,0.00014733,2]
[340343858,1729079441827,-150.0,0.00014735,2]
[340343859,1729079441837,-150.0,0.00014737,2]
[340343860,1729079441847,-150.0,0.00014742,2]
[340343861,1729079441856,-150.0,0.0001475,2]
[340343862,1729079441866,-150.0,0.00014751,2]
[340343863,1729079441875,-150.0,0.00014752,2]
[340343864,1729079441885,-150.0,0.00014753,2]
[340343865,1729079441894,-150.0,0.00014755,2]
[340343866,1729079441904,-150.0,0.00014756,2]
[340343867,1729079441913,-150.0,0.00014758,2]
[340343868,1729079441924,-150.0,0.00014762,2]
[340343869,1729079441935,-150.0,0.00014762,2]
[340343870,1729079441947,-150.0,0.00014765,2]
[340343871,1729079441959,-150.0,0.00014766,2]
[340343872,1729079441970,-150.0,0.00014775,2]
[340343873,1729079441979,-200.0,0.00014779,2]
[340343874,1729079441988,-150.0,0.00014783,2]
[340343875,1729079441998,-150.0,0.00014786,2]
[340343876,1729079442007,-150.0,0.00014791,2]
[340343877,1729079442016,-500.0,0.00014794,4]
[340343878,1729079442027,-150.0,0.00014794,2]
[340343879,1729079442036,-150.0,0.00014796,2]
[340343880,1729079442047,-150.0,0.000148,2]
[340343881,1729079442059,-150.0,0.00014801,2]
[340343882,1729079442070,-150.0,0.00014804,2]
[340343883,1729079442082,-150.0,0.00014805,2]
[340343884,1729079442091,-150.0,0.00014809,2]
[340343885,1729079442100,-150.0,0.00014812,2]
[340343886,1729079442110,-150.0,0.00014814,2]
[340343887,1729079442119,-150.0,0.00014817,2]
[340343888,1729079442128,-150.0,0.0001482,2]
[340343889,1729079442139,-150.0,0.00014822,2]
[340343890,1729079442148,-150.0,0.00014824,2]
[340343891,1729079442159,-150.0,0.00014826,2]
[340343892,1729079442170,-150.0,0.00014828,2]
[340343893,1729079442180,-150.0,0.00014833,2]
[340343894,1729079442189,-150.0,0.00014834,2]
[340343895,1729079442199,-626.72107769,0.00014834,2]
[340343896,1729079442210,-150.0,0.00014836,2]
[340343897,1729079442220,-150.0,0.00014839,2]
[340343898,1729079442231,-150.0,0.00014842,2]
[340343899,1729079442241,-150.0,0.00014842,2]
[340343900,1729079442250,-150.0,0.00014843,2]
[340343901,1729079442259,-150.0,0.00014843,2]
[340343902,1729079442269,-150.0,0.00014843,2]
[340343903,1729079442278,-150.0,0.00014846,2]
[340343904,1729079442288,-150.0,0.00014847,2]
[340343905,1729079442298,-150.0,0.00014851,2]
[340343906,1729079442307,-150.0,0.00014856,2]
[340343907,1729079442317,-150.0,0.00014864,2]
[340343908,1729079442327,-150.0,0.00014866,2]
[340343909,1729079442337,-150.0,0.00014868,2]
[340343910,1729079442347,-150.0,0.0001487,2]
[340343911,1729079442355,-1500.0,0.00014871,2]
[340343912,1729079442365,-150.0,0.00014873,2]
[340343913,1729079442375,-150.0,0.00014876,2]
[340343914,1729079442384,-150.0,0.00014885,2]
[340343915,1729079442393,-150.0,0.00014887,2]
[340343916,1729079442404,-150.0,0.0001489,2]
[340343917,1729079442417,-150.0,0.0001489,2]
[340343918,1729079442427,-150.0,0.00014891,2]
[340343919,1729079442437,-150.0,0.00014894,2]
[340343920,1729079442446,-150.0,0.00014896,2]
[340343921,1729079442458,-150.0,0.00014899,2]
[340343922,1729079442467,-150.0,0.00014899,2]
[340343923,1729079442477,-212.64819021,0.000149,2]
[340343924,1729079442487,-212.6481902,0.000149,2]
[340343925,1729079442500,-212.6481902,0.000149,2]
[340343926,1729079442511,-1500.0,0.00014901,2]
[340343927,1729079442521,-1500.0,0.00014902,2]
[340343928,1729079442532,-150.0,0.00014904,2]
[340343929,1729079442544,-150.0,0.00014907,2]
[340343930,1729079442553,-1500.0,0.00014908,2]
[340343931,1729079442563,-247.9240577,0.00014909,2]
[340343932,1729079442573,-151.0,0.00014918,2]
[340343933,1729079442585,-151.0,0.00014918,2]
[340343934,1729079442595,-151.0,0.00014918,2]
[340343935,1729079442605,-151.0,0.00014918,2]
[340343936,1729079442614,-151.824857,0.00014918,2]
[340343937,1729079442624,-151.0,0.00014918,2]
[340343938,1729079442633,-151.0,0.00014918,2]
[340343939,1729079442643,-151.0,0.00014918,2]
[340343940,1729079442653,-151.0,0.00014918,2]
[340343941,1729079442663,-151.0,0.00014918,2]
[340343942,1729079442673,-1500.0,0.00014937,2]
[340343943,1729079442682,-160.13,0.00014971,2]
[340343944,1729079442692,-1939.31735457,0.00015,2]
[340343945,1729079442701,-201.10631153,0.00015,2]
[340343946,1729079442711,-5389.0,0.00015,2]
[340343947,1729079442721,-494.2374514,0.00015,2]
[340343948,1729079442731,-151.0,0.00015,2]
[340343949,1729079442741,-151.0,0.00015,2]
[340343950,1729079442751,-151.0,0.00015,2]
[340343951,1729079442760,-416.0,0.00015,2]
[340343952,1729079442770,-300.0,0.00015068,2]
[340343953,1729079442780,-414.531,0.00015072,2]
[340343954,1729079442789,-551.397,0.0001511,2]
[340343955,1729079442799,-812.0,0.0001511,2]
[340343956,1729079442809,-560.0,0.0001511,2]
[340343957,1729079442819,-1244.0,0.0001511,2]
[340343958,1729079442830,-555.932,0.0001511,2]
[340343959,1729079442840,-150.0,0.0001511,2]
[340343960,1729079442850,-935.0,0.0001511,2]
[340343961,1729079442859,-3357.0,0.0001511,2]
[340343962,1729079442869,-1909.0,0.0001511,2]
[340343963,1729079442879,-809.0,0.0001511,2]
[340343964,1729079442903,-155.548,0.0001511,2]
[340343966,1729079442912,-5885.0,0.0001511,2]
[340343968,1729079442922,-211.286,0.0001511,2]
[340343970,1729079442933,-13532.0,0.0001511,2]
[340343972,1729079442944,-1150.0,0.0001511,2]
[340343974,1729079442953,-168.611,0.00015187,2]
[340343976,1729079442963,-1215.01967579,0.00015235,2]
[340343979,1729079442974,-153.36555277,0.00015267,2]
[340343981,1729079442983,-565.58502372,0.000153,2]
[340343985,1729079443005,-952.05497628,0.000153,2]
[340343986,1729079443014,-500.0,0.00015342,5]
[340343987,1729079443024,-285.32,0.00015346,2]
[340343989,1729079443032,-402.42,0.00015379,2]
[340343992,1729079443042,-480.78929536,0.000154,2]
[340343994,1729079443051,-812.9552736,0.000155,2]
[340343996,1729079443061,-165.67,0.00015526,2]
[340343998,1729079443071,-478.06,0.00015567,2]
[340344001,1729079443082,-378.89547546,0.000156,2]
[340344004,1729079443092,-162.67,0.0001565,2]
[340344007,1729079443101,-840.0,0.00015673,2]
[340344010,1729079443111,-160.13,0.0001572,2]
[340344013,1729079443120,-2866.14061617,0.0001575,2]
[340344016,1729079443129,-1705.31,0.000158,2]
[340344018,1729079443139,-1063.61,0.00015814,2]
[340344019,1729079443148,-414.531,0.00015863,2]
[340344021,1729079443158,-500.0,0.0001589,6]
[340344023,1729079443169,-125.83793284,0.00016,2]
[340344026,1729079443183,-574.16206716,0.00016,2]
[340344027,1729079443192,-2000.0,0.00016,2]
[340344028,1729079443202,-2000.0,0.0001601,2]
[340344029,1729079443211,-3531.926957,0.0001602,2]
[340344030,1729079443221,-200.0,0.00016122,2]
[340344031,1729079443231,-247.9240577,0.00016278,2]
[340344032,1729079443242,-200.0,0.0001634,2]
[340344033,1729079443251,-198.28,0.00016438,2]
[340344034,1729079443261,-277.66047105,0.00016438,7]
[340344035,1729079443270,-300.0,0.00016438,2]
[340344036,1729079443280,-433.6,0.00016438,2]
[340344037,1729079443289,-150.0,0.00016438,2]
[340344038,1729079443298,-185.148874,0.00016438,2]
[340344039,1729079443307,-185.148874,0.00016438,2]
[340344040,1729079443438,-710.82,0.00016438,2]
[340344041,1729079443450,-150.0,0.00016438,2]
[340344042,1729079443461,-426.50042823,0.00016567,2]
[340344043,1729079443471,-198.28,0.00016575,2]
[340344044,1729079443480,-198.28,0.00016712,2]
[340344045,1729079443493,-152.52,0.00016712,2]
[340344046,1729079443502,-414.531,0.00016738,2]
[340344047,1729079443512,-198.28,0.00016849,2]
[340344048,1729079443521,-150.0,0.00016871,2]
[340344049,1729079443531,-198.28,0.00016986,2]
[340344050,1729079443540,-198.28,0.00017123,2]
[340344051,1729079443549,-250.0,0.00017123,2]
[340344052,1729079443558,-198.28,0.0001726,2]
[340344053,1729079443567,-150.0,0.00017304,2]
[340344054,1729079443579,-198.28,0.00017397,2]
[340344055,1729079443588,-198.28,0.00017534,2]
[340344056,1729079443598,-247.9240577,0.00017648,2]
[340344057,1729079443607,-198.28,0.00017671,2]
[340344058,1729079443616,-414.531,0.00017706,2]
[340344059,1729079443625,-200.47863496,0.00017729,2]
[340344060,1729079443635,-150.0,0.00017736,2]
[340344061,1729079443644,-198.28,0.00017808,2]
[340344062,1729079443653,-350.0,0.00017808,2]
[340344063,1729079443662,-1705.31,0.000179,2]
[340344064,1729079443672,-198.28,0.00017945,2]
[340344065,1729079443683,-1124.45901554,0.00018,2]
[340344066,1729079443692,-1023.60370813,0.00018,2]
[340344067,1729079443703,-750.0,0.00018,2]
[340344068,1729079443713,-151.761037,0.00018,2]
[340344069,1729079443722,-151.0,0.00018,2]
[340344070,1729079443732,-151.0,0.00018,2]
[340344071,1729079443743,-151.0,0.00018,2]
[340344072,1729079443752,-151.0,0.00018,2]
[340344073,1729079443762,-151.0,0.00018,2]
[340344074,1729079443771,-151.0,0.00018,2]
[340344075,1729079443781,-1121.8,0.00018,7]
[340344076,1729079443791,-869.95,0.00018,2]
[340344077,1729079443801,-869.95,0.00018,2]
[340344078,1729079443812,-869.95,0.00018,2]
[340344079,1729079443822,-869.95,0.00018,2]
[340344080,1729079443834,-869.95,0.00018,2]
[340344081,1729079443844,-869.95,0.00018,2]
[340344082,1729079443853,-869.95,0.00018,2]
[340344083,1729079443862,-869.95,0.00018,2]
[340344084,1729079443871,-869.95,0.00018,2]
[340344085,1729079443881,-800.26045589,0.00018,2]
[340344086,1729079443918,-69.68954411,0.00018,2]
[340344087,1729079443928,-869.95,0.00018,2]
[340344088,1729079443938,-869.95,0.00018,2]
[340344089,1729079443948,-869.95,0.00018,2]
[340344090,1729079443958,-377.55791113,0.00018,2]
[340344091,1729079443973,-492.39208887,0.00018,2]
[340344092,1729079443983,-869.95,0.00018,2]
[340344093,1729079443993,-869.95,0.00018,2]
[340344094,1729079444003,-869.95,0.00018,2]
[340344095,1729079444013,-869.95,0.00018,2]
[340344096,1729079444023,-869.95,0.00018,2]
[340344097,1729079444032,-869.95,0.00018,2]
[340344098,1729079444042,-1063.61,0.00018078,2]
[340344099,1729079444052,-198.28,0.00018082,2]
[340344100,1729079444062,-1681.91820625,0.000181,2]
[340344101,1729079444072,-158.159286,0.000181,2]
[340344102,1729079444082,-158.159286,0.000181,2]
[340344103,1729079444091,-151.0,0.000181,2]
[340344104,1729079444100,-151.0,0.0001811,2]
[340344105,1729079444109,-812.0,0.0001811,2]
[340344106,1729079444118,-560.0,0.0001811,2]
[340344107,1729079444127,-555.0,0.0001811,2]
[340344108,1729079444136,-150.0,0.0001811,2]
[340344109,1729079444145,-935.0,0.0001811,2]
[340344110,1729079444155,-3357.0,0.0001811,2]
[340344111,1729079444164,-1909.0,0.0001811,2]
[340344112,1729079444174,-809.0,0.0001811,2]
[340344113,1729079444184,-150.0,0.0001811,2]
[340344114,1729079444194,-5885.0,0.0001811,2]
[340344115,1729079444203,-150.0,0.0001811,2]
[340344116,1729079444213,-13532.0,0.0001811,2]
[340344117,1729079444223,-1150.0,0.0001811,2]
[340344118,1729079444233,-500.0,0.0001815,30]
[340344119,1729079444243,-500.0,0.0001815,30]
[340344120,1729079444252,-500.0,0.0001815,30]
[340344121,1729079444261,-500.0,0.0001815,30]
[340344122,1729079444270,-500.0,0.0001815,30]
[340344123,1729079444279,-500.0,0.0001815,30]
[340344124,1729079444288,-500.0,0.0001815,30]
[340344125,1729079444298,-500.0,0.0001815,30]
[340344126,1729079444307,-500.0,0.0001815,30]
[340344127,1729079444317,-500.0,0.0001815,30]
[340344128,1729079444328,-224.39940724,0.0001815,30]
[340344129,1729079444337,-150.0,0.00018169,2]
[340344130,1729079444347,-198.28,0.00018219,2]
[340344131,1729079444357,-198.28,0.00018356,2]
[340344132,1729079444367,-151.56,0.00018372,2]
[340344133,1729079444377,-198.28,0.00018493,2]
[340344134,1729079444387,-347.76364188,0.00018493,2]
[340344135,1729079444397,-3263.52,0.00018533,2]
[340344136,1729079444408,-150.0,0.00018601,2]
[340344137,1729079444421,-198.28,0.0001863,2]
[340344138,1729079444431,-198.28,0.00018767,2]
[340344139,1729079444441,-414.531,0.00018782,2]
[340344140,1729079444451,-156.83,0.00018836,2]
[340344141,1729079444462,-198.28,0.00018904,2]
[340344142,1729079444472,-500.0,0.00018972,2]
[340344143,1729079444483,-1400.0,0.00018972,2]
[340344144,1729079444493,-500.0,0.00018972,2]
[340344145,1729079444505,-1100.0,0.00018972,2]
[340344146,1729079444514,-247.9240577,0.00019017,2]
[340344147,1729079444524,-150.0,0.00019034,2]
[340344148,1729079444534,-198.28,0.00019041,2]
[340344149,1729079444544,-154.788729,0.00019096,2]
[340344150,1729079444554,-154.573575,0.00019096,2]
[340344151,1729079444565,-198.28,0.00019178,2]
[340344152,1729079444575,-200.0,0.00019178,2]
[340344153,1729079444587,-200.0,0.00019178,2]
[340344154,1729079444597,-200.0,0.00019178,2]
[340344155,1729079444607,-200.0,0.00019178,2]
[340344156,1729079444618,-200.0,0.00019178,2]
[340344157,1729079444627,-200.0,0.00019178,2]
[340344158,1729079444638,-194.0,0.00019178,2]
[340344159,1729079444648,-151.0,0.00019178,2]
[340344160,1729079444658,-198.28,0.00019315,2]
[340344161,1729079444668,-198.28,0.00019452,2]
[340344162,1729079444677,-150.0,0.00019466,2]
[340344163,1729079444688,-198.45871361,0.00019589,2]
[340344164,1729079444698,-153.36555277,0.00019633,2]
[340344165,1729079444708,-152.52,0.00019658,2]
[340344166,1729079444717,-1705.31,0.000198,2]
[340344167,1729079444727,-150.0,0.00019899,2]
[340344168,1729079444737,-414.531,0.00019981,2]
[340344169,1729079444747,-295.33794572,0.0002,2]
[340344170,1729079444757,-3793.88131483,0.0002,2]
[340344171,1729079444766,-3950.0,0.0002,2]
[340344172,1729079444777,-4011.6681006,0.0002,2]
[340344173,1729079444787,-150.0,0.0002,2]
[340344174,1729079444798,-800.0,0.0002,2]
[340344175,1729079444807,-397.77251946,0.0002,2]
[340344176,1729079444818,-238.66351167,0.0002,2]
[340344177,1729079444828,-159.10900778,0.0002,2]
[340344178,1729079444837,-151.0,0.0002,2]
[340344179,1729079444847,-151.0,0.0002,2]
[340344180,1729079444857,-151.0,0.0002,2]
[340344181,1729079444867,-151.0,0.0002,2]
[340344182,1729079444877,-300.0,0.0002,2]
[340344183,1729079444887,-291.429591,0.0002,2]
[340344184,1729079444897,-291.429591,0.0002,2]
[340344185,1729079444907,-2000.0,0.0002,2]
[340344186,1729079444918,-2000.0,0.0002,2]
[340344187,1729079444928,-2000.0,0.0002,2]
[340344188,1729079444937,-151.0,0.0002,2]
[340344189,1729079444947,-151.0,0.0002,2]
[340344190,1729079444956,-152.813997,0.0002,2]
[340344191,1729079444967,-237.168046,0.0002,2]
[340344192,1729079444976,-156.280985,0.0002,2]
[340344193,1729079444986,-152.813997,0.0002,2]
[340344194,1729079444996,-237.168046,0.0002,2]
[340344195,1729079445007,-151.0,0.0002,2]
[340344196,1729079445017,-151.0,0.0002,2]
[340344197,1729079445028,-151.0,0.0002,2]
[340344198,1729079445039,-198.371039,0.0002,2]
[340344199,1729079445050,-198.371039,0.0002,2]
[340344200,1729079445060,-151.0,0.0002,2]
[340344201,1729079445071,-151.0,0.0002,2]
[340344202,1729079445081,-151.0,0.0002,2]
[340344203,1729079445093,-151.0,0.0002,2]
[340344204,1729079445102,-154.136448,0.0002,2]
[340344205,1729079445112,-151.0,0.0002,2]
[340344206,1729079445122,-152.343789,0.0002,2]
[340344207,1729079445132,-185.148874,0.0002,2]
[340344208,1729079445141,-152.291535,0.0002,2]
[340344209,1729079445151,-185.148874,0.0002,2]
[340344210,1729079445160,-410.936565,0.0002,2]
[340344211,1729079445169,-410.936565,0.0002,2]
[340344212,1729079445179,-183.735322,0.0002,2]
[340344213,1729079445188,-154.243802,0.0002,2]
[340344214,1729079445197,-183.735322,0.0002,2]
[340344215,1729079445207,-359.469549,0.0002,2]
[340344216,1729079445217,-359.469549,0.0002,2]
[340344217,1729079445226,-151.0,0.0002,2]
[340344218,1729079445235,-151.0,0.0002,2]
[340344219,1729079445244,-211.930545,0.0002,2]
[340344220,1729079445254,-151.0,0.0002,2]
[340344221,1729079445263,-1482.677082,0.0002,2]
[340344222,1729079445272,-1482.677082,0.0002,2]
[340344223,1729079445282,-151.0,0.0002,2]
[340344224,1729079445291,-1572.180568,0.0002,2]
[340344225,1729079445302,-158.840748,0.0002,2]
[340344226,1729079445313,-154.392488,0.0002,2]
[340344227,1729079445323,-1572.180568,0.0002,2]
[340344228,1729079445334,-151.0,0.0002,2]
[340344229,1729079445343,-157.931242,0.0002,2]
[340344230,1729079445472,-151.0,0.0002,2]
[340344231,1729079445482,-502.9,0.0002,2]
[340344232,1729079445492,-502.9,0.0002,2]
[340344233,1729079445505,-502.9,0.0002,2]
[340344234,1729079445514,-502.9,0.0002,2]
[340344235,1729079445525,-502.9,0.0002,2]
[340344236,1729079445535,-502.9,0.0002,2]
[340344237,1729079445546,-502.9,0.0002,2]
[340344238,1729079445556,-502.9,0.0002,2]
[340344239,1729079445566,-502.9,0.0002,2]
[340344240,1729079445575,-502.9,0.0002,2]
[340344241,1729079445589,-151.0,0.0002,2]
[340344242,1729079445599,-3021.284638,0.0002001,2]
[340344243,1729079445608,-3021.284638,0.0002001,2]
[340344244,1729079445618,-2000.0,0.0002001,2]
[340344245,1729079445627,-3782.991189,0.0002002,2]
[340344246,1729079445636,-154.788729,0.00020051,2]
[340344247,1729079445646,-154.573575,0.00020051,2]
[340344248,1729079445656,-1400.0,0.00020068,2]
[340344249,1729079445666,-1100.0,0.00020068,2]
[340344250,1729079445675,-433.6,0.00020274,2]
[340344251,1729079445684,-150.0,0.00020332,2]
[340344252,1729079445695,-1063.61,0.00020342,2]
[340344253,1729079445704,-247.9240577,0.00020387,2]
[340344254,1729079445713,-222.445338,0.00020487,2]
[340344255,1729079445723,-151.0,0.00020487,2]
[340344256,1729079445734,-151.311426,0.00020487,2]
[340344257,1729079445744,-151.0,0.00020487,2]
[340344258,1729079445754,-151.0,0.00020487,2]
[340344259,1729079445763,-151.0,0.00020487,2]
[340344260,1729079445773,-151.0,0.00020487,2]
[340344261,1729079445783,-151.0,0.00020487,2]
[340344262,1729079445792,-151.0,0.00020487,2]
[340344264,1729079445802,-500.0,0.00020487,2]
[340344266,1729079445811,-500.0,0.00020487,2]
[340344267,1729079445821,-500.0,0.00020487,2]
[340344268,1729079445833,-500.0,0.00020487,2]
[340344269,1729079445843,-500.0,0.00020487,2]
[340344270,1729079445852,-500.0,0.00020487,2]
[340344271,1729079445862,-500.0,0.00020487,2]
[340344273,1729079445871,-500.0,0.00020487,2]
[340344274,1729079445880,-500.0,0.00020487,2]
[340344275,1729079445889,-500.0,0.00020487,2]
[340344276,1729079445898,-500.0,0.00020487,2]
[340344277,1729079445907,-500.0,0.00020487,2]
[340344278,1729079445916,-500.0,0.00020487,2]